fUST/lending_fUST_20240808
["ID","MTS","AMOUNT","RATE_DAILY","PERIOD"]
[334417187,1723071045919,-1458.68,0.00028651,7]
[334417188,1723071045930,-974.9,0.00028651,7]
[334417189,1723071045940,-500.0,0.00028651,7]
[334417190,1723071045949,-500.0,0.00028651,7]
[334417191,1723071045959,-500.0,0.00028651,7]
[334417192,1723071045969,-571.29,0.00028651,7]
[334417193,1723071045978,-500.0,0.00028651,7]
[334417194,1723071045987,-390.87362543,0.00028651,7]
[334417195,1723071045999,-500.53809244,0.00028651,7]
[334417196,1723071046010,-500.0,0.00028651,7]
[334417197,1723071046020,-1596.54,0.00028651,7]
[334417198,1723071046030,-500.0,0.00028651,7]
[334417199,1723071046039,-500.0,0.00028651,7]
[334417200,1723071046050,-500.0,0.00028651,7]
[334417201,1723071046063,-500.0,0.00028651,7]
[334417202,1723071046073,-1633.64,0.00028651,7]
[334417203,1723071046084,-1109.33,0.00028651,7]
[334417204,1723071046093,-500.0,0.00028651,7]
[334417205,1723071046102,-500.0,0.00028651,7]
[334417206,1723071046111,-593.68,0.00028651,7]
[334417207,1723071046121,-500.0,0.00028651,7]
[334417208,1723071046131,-500.0,0.00028651,7]
[334417209,1723071046141,-500.0,0.00028651,7]
[334417210,1723071046151,-500.0,0.00028651,7]
[334417211,1723071046160,-500.0,0.00028651,7]
[334417212,1723071046170,-500.0,0.00028651,7]
[334417213,1723071046180,-619.27600495,0.00028651,7]
[334417214,1723071046190,-500.0,0.00028651,7]
[334417215,1723071046199,-500.0,0.00028651,7]
[334417216,1723071046209,-500.0,0.00028651,7]
[334417217,1723071046221,-500.0,0.00028651,7]
[334417218,1723071046230,-500.0,0.00028651,7]
[334417219,1723071046239,-500.0,0.00028651,7]
[334417220,1723071046249,-500.0,0.00028651,7]
[334417221,1723071046258,-1849.36,0.00028651,7]
[334417222,1723071046268,-426.23353534,0.00028651,7]
[334417223,1723071046278,-503.76422453,0.00028651,7]
[334417224,1723071046288,-500.0,0.00028651,7]
[334417225,1723071046297,-500.0,0.00028651,7]
[334417226,1723071046307,-154.60575532,0.00028651,7]
[334417227,1723071046319,-500.0,0.00028651,7]
[334417228,1723071046328,-500.0,0.00028651,7]
[334417229,1723071046338,-500.0,0.00028651,7]
[334417230,1723071046347,-500.0,0.00028651,7]
[334417231,1723071046357,-500.0,0.00028651,7]
[334417232,1723071046367,-500.91697882,0.00028651,7]
[334417233,1723071046377,-500.0,0.00028651,7]
[334417234,1723071046386,-500.0,0.00028651,7]
[334417235,1723071046396,-500.0,0.00028651,7]
[334417236,1723071046405,-500.0,0.00028651,7]
[334417237,1723071046415,-500.0,0.00028651,7]
[334417238,1723071046424,-500.0,0.00028651,7]
[334417239,1723071046433,-500.0,0.00028651,7]
[334417240,1723071046445,-500.0,0.00028651,7]
[334417241,1723071046455,-201.13826924,0.00028651,7]
[334417242,1723071046464,-500.0,0.00028651,7]
[334417243,1723071046473,-500.0,0.00028651,7]
[334417244,1723071046483,-628.91,0.00028651,7]
[334417245,1723071046492,-500.0,0.00028651,7]
[334417246,1723071046501,-500.0,0.00028651,7]
[334417247,1723071046510,-500.0,0.00028651,7]
[334417248,1723071046520,-500.0,0.00028651,7]
[334417249,1723071046529,-1087.09,0.00028651,7]
[334417250,1723071046539,-500.12596827,0.00028651,7]
[334417251,1723071046549,-500.0,0.00028651,7]
[334417252,1723071046558,-927.97,0.00028651,7]
[334417253,1723071046571,-500.0,0.00028651,7]
[334417254,1723071046582,-500.0,0.00028651,7]
[334417255,1723071046592,-500.0,0.00028651,7]
[334417256,1723071046610,-864.17,0.00028651,7]
[334417258,1723071046621,-500.0,0.00028651,7]
[334417260,1723071046631,-500.0,0.00028651,7]
[334417262,1723071046641,-500.0,0.00028651,7]
[334417263,1723071046650,-500.0,0.00028651,7]
[334417264,1723071046660,-501.34082611,0.00028651,7]
[334417265,1723071046670,-500.0,0.00028651,7]
[334417267,1723071046679,-500.0,0.00028651,7]
[334417270,1723071046688,-500.0,0.00028651,7]
[334417272,1723071046698,-500.0,0.00028651,7]
[334417274,1723071046708,-500.0,0.00028651,7]
[334417276,1723071046718,-509.02729291,0.00028651,7]
[334417278,1723071046727,-790.84,0.00028651,7]
[334417280,1723071046737,-500.0,0.00028651,7]
[334417281,1723071046747,-2056.91,0.00028651,7]
[334417283,1723071046757,-682.41,0.00028651,7]
[334417285,1723071046766,-500.0,0.00028651,7]
[334417287,1723071046776,-500.0,0.00028651,7]
[334417289,1723071046785,-500.0,0.00028651,7]
[334417291,1723071046794,-474.1354094,0.00028651,7]
[334417293,1723071046806,-500.0,0.00028651,7]
[334417295,1723071046818,-3000.58,0.00028651,7]
[334417296,1723071046827,-500.0,0.00028651,7]
[334417298,1723071046836,-500.0,0.00028651,7]
[334417299,1723071046845,-535.93309232,0.00028651,7]
[334417301,1723071046854,-1172.55,0.00028651,7]
[334417303,1723071046863,-500.39133348,0.00028651,7]
[334417304,1723071046875,-500.0,0.00028651,7]
[334417305,1723071046886,-500.0,0.00028651,7]
[334417306,1723071046896,-500.0,0.00028651,7]
[334417307,1723071046905,-615.1,0.00028651,7]
[334417309,1723071046916,-690.65,0.00028651,7]
[334417311,1723071046926,-500.0,0.00028651,7]
[334417313,1723071046935,-500.0,0.00028651,7]
[334417314,1723071046945,-500.0,0.00028651,7]
[334417315,1723071046954,-544.65680486,0.00028651,7]
[334417316,1723071046966,-500.0,0.00028651,7]
[334417318,1723071046975,-500.0,0.00028651,7]
[334417319,1723071046984,-500.0,0.00028651,7]
[334417320,1723071046994,-607.18403529,0.00028651,7]
[334417321,1723071047004,-500.0,0.00028651,7]
[334417322,1723071047014,-570.07619806,0.00028651,7]
[334417323,1723071047023,-2057.16,0.00028651,7]
[334417324,1723071047032,-500.0,0.00028651,7]
[334417325,1723071047041,-500.0,0.00028651,7]
[334417326,1723071047050,-500.0,0.00028651,7]
[334417327,1723071047059,-500.0,0.00028651,7]
[334417328,1723071047071,-621.5,0.00028651,7]
[334417329,1723071047080,-500.0,0.00028651,7]
[334417330,1723071047090,-500.0,0.00028651,7]
[334417331,1723071047099,-500.0,0.00028651,7]
[334417332,1723071047109,-500.0,0.00028651,7]
[334417333,1723071047118,-500.0,0.00028651,7]
[334417334,1723071047128,-505.55203561,0.00028651,7]
[334417335,1723071047137,-500.0,0.00028651,7]
[334417336,1723071047146,-500.0,0.00028651,7]
[334417337,1723071047156,-500.0,0.00028651,7]
[334417338,1723071047165,-500.0,0.00028651,7]
[334417339,1723071047174,-500.0,0.00028651,7]
[334417340,1723071047183,-500.0,0.00028651,7]
[334417341,1723071047193,-500.0,0.00028651,7]
[334417342,1723071047202,-500.0,0.00028651,7]
[334417343,1723071047211,-500.0,0.00028651,7]
[334417344,1723071047221,-500.0,0.00028651,7]
[334417345,1723071047231,-500.56373264,0.00028651,7]
[334417346,1723071047240,-500.0,0.00028651,7]
[334417347,1723071047250,-500.0,0.00028651,7]
[334417348,1723071047260,-500.0,0.00028651,7]
[334417349,1723071047270,-500.0,0.00028651,7]
[334417350,1723071047280,-500.97262006,0.00028651,7]
[334417351,1723071047290,-500.0,0.00028651,7]
[334417352,1723071047299,-500.0,0.00028651,7]
[334417353,1723071047309,-629.57,0.00028651,7]
[334417354,1723071047324,-500.0,0.00028651,7]
[334417355,1723071047338,-500.0,0.00028651,7]
[334417356,1723071047347,-509.95416361,0.00028651,7]
[334417357,1723071047356,-500.0,0.00028651,7]
[334417358,1723071047366,-500.0,0.00028651,7]
[334417359,1723071047375,-500.34990553,0.00028651,7]
[334417360,1723071047384,-545.0,0.00028651,7]
[334417361,1723071047394,-2005.0,0.00028651,10]
[334417362,1723071047404,-504.03474625,0.00028651,7]
[334417363,1723071047414,-542.09,0.00028651,7]
[334417364,1723071047423,-500.0,0.00028651,7]
[334417365,1723071047433,-500.0,0.00028651,7]
[334417366,1723071047444,-501.10427575,0.00028651,7]
[334417367,1723071047453,-500.0,0.00028651,7]
[334417368,1723071047462,-937.65,0.00028651,7]
[334417369,1723071047471,-646.69,0.00028659,7]
[334417370,1723071047481,-512.43,0.00028659,7]
[334417371,1723071047490,-548.07,0.00028659,7]
[334417372,1723071047500,-646.69,0.0002866,7]
[334417373,1723071047510,-646.69,0.0002866,7]
[334417374,1723071047520,-500.0,0.0002866,7]
[334417375,1723071047529,-500.0,0.0002866,7]
[334417376,1723071047539,-500.0,0.0002866,2]
[334417377,1723071047549,-466.75252687,0.0002866,2]
[334417378,1723071047558,-500.0,0.0002866,7]
[334417379,1723071047571,-500.0,0.0002866,7]
[334417380,1723071047581,-2005.0,0.0002866,10]
[334417381,1723071047590,-1985.0,0.0002866,10]
[334417382,1723071047600,-646.69,0.00028661,7]
[334417383,1723071047609,-646.69,0.00028661,7]
[334417384,1723071047619,-500.0,0.00028661,7]
[334417385,1723071047628,-500.0,0.00028661,7]
[334417386,1723071047637,-478.4678147,0.00028661,7]
[334417387,1723071047692,-512.43,0.00028661,7]
[334417388,1723071047702,-500.0,0.00028661,7]
[334417389,1723071047712,-500.0,0.00028661,7]
[334417390,1723071047722,-500.0,0.00028661,7]
[334417391,1723071047731,-548.07,0.00028661,7]
[334417392,1723071047741,-646.69,0.00028662,7]
[334417393,1723071047750,-512.43,0.00028662,7]
[334417394,1723071047760,-548.07,0.00028662,7]
[334417395,1723071047769,-12147.6520229,0.00028663,3]
[334417396,1723071047778,-212.8871623,0.00028663,7]
[334417397,1723071047787,-646.69,0.00028671,7]
[334417398,1723071047797,-646.69,0.00028671,7]
[334417399,1723071047808,-646.69,0.00028671,7]
[334417400,1723071047821,-512.43,0.00028671,7]
[334417401,1723071047831,-512.43,0.00028671,7]
[334417402,1723071047840,-548.07,0.00028671,7]
[334417403,1723071047849,-548.07,0.00028671,7]
[334417404,1723071047859,-288.63181647,0.00028672,7]
[334417405,1723071047870,-500.0,0.00028672,7]
[334417406,1723071047882,-256.73327862,0.00028672,7]
[334417407,1723071047893,-646.69,0.00028672,7]
[334417408,1723071047901,-646.69,0.00028672,7]
[334417409,1723071047910,-646.69,0.00028672,7]
[334417410,1723071047923,-516.93084222,0.00028672,7]
[334417411,1723071047932,-500.41297889,0.00028672,7]
[334417412,1723071047941,-500.40925486,0.00028672,7]
[334417413,1723071047953,-500.0,0.00028672,7]
[334417414,1723071047965,-500.0,0.00028672,7]
[334417415,1723071047974,-500.0,0.00028672,7]
[334417416,1723071047983,-500.0,0.00028672,7]
[334417417,1723071047992,-500.0,0.00028672,7]
[334417418,1723071048002,-512.43,0.00028672,7]
[334417419,1723071048011,-512.43,0.00028672,7]
[334417420,1723071048020,-512.43,0.00028672,7]
[334417421,1723071048029,-548.07,0.00028672,7]
[334417422,1723071048039,-548.07,0.00028672,7]
[334417423,1723071048049,-548.07,0.00028672,7]
[334417424,1723071048058,-500.0,0.00028673,7]
[334417425,1723071048070,-500.0,0.00028673,7]
[334417426,1723071048079,-814.8,0.00028673,7]
[334417427,1723071048088,-500.53659954,0.00028673,7]
[334417428,1723071048097,-500.0,0.00028673,7]
[334417429,1723071048106,-500.0,0.00028673,7]
[334417430,1723071048115,-500.0,0.00028673,7]
[334417431,1723071048125,-500.0,0.00028673,7]
[334417432,1723071048136,-150.112233,0.000287,10]
[334417433,1723071048145,-646.69,0.00028751,7]
[334417434,1723071048154,-512.43,0.00028753,7]
[334417435,1723071048164,-512.43,0.00028753,7]
[334417436,1723071048174,-512.43,0.00028753,7]
[334417437,1723071048183,-512.43,0.00028753,7]
[334417438,1723071048193,-512.50180136,0.00028753,7]
[334417439,1723071048204,-548.07,0.00028753,7]
[334417440,1723071048214,-548.07,0.00028753,7]
[334417441,1723071048223,-548.07,0.00028753,7]
[334417442,1723071048233,-548.07,0.00028753,7]
[334417443,1723071048242,-548.23165657,0.00028753,7]
[334417444,1723071048251,-646.69,0.00028761,7]
[334417445,1723071048260,-646.69,0.00028762,7]
[334417446,1723071048269,-646.69,0.00028773,7]
[334417447,1723071048280,-646.69,0.00028773,7]
[334417448,1723071048289,-801.84,0.00028799,7]
[334417449,1723071048298,-1509.24,0.00028799,7]
[334417450,1723071048307,-4601.34,0.00028799,7]
[334417451,1723071048318,-500.0,0.00028799,7]
[334417452,1723071048327,-608.43,0.00028799,7]
[334417453,1723071048337,-9803.79,0.00028799,7]
[334417454,1723071048346,-5501.84,0.00028799,7]
[334417455,1723071048355,-1769.34,0.00028799,7]
[334417456,1723071048364,-5791.61,0.00028799,7]
[334417457,1723071048374,-1497.96,0.00028799,7]
[334417458,1723071048383,-2499.21,0.00028799,7]
[334417459,1723071048392,-606.21,0.00028799,7]
[334417460,1723071048402,-1310.1,0.00028799,7]
[334417461,1723071048412,-824.11,0.00028799,7]
[334417462,1723071048422,-1016.44,0.00028799,7]
[334417463,1723071048431,-3093.29,0.00028799,7]
[334417464,1723071048444,-1305.86,0.00028799,7]
[334417465,1723071048453,-777.62,0.00028799,7]
[334417466,1723071048463,-500.0,0.00028814,7]
[334417467,1723071048473,-500.0,0.00028814,7]
[334417468,1723071048483,-346.78960343,0.00028814,7]
[334417469,1723071048493,-500.0,0.00028814,7]
[334417470,1723071048502,-500.0,0.00028814,7]
[334417471,1723071048511,-500.0,0.00028814,7]
[334417472,1723071048520,-500.0,0.00028814,7]
[334417473,1723071048530,-501.83121288,0.00028814,7]
[334417474,1723071048539,-622.13,0.00028814,7]
[334417475,1723071048549,-500.0,0.00028814,7]
[334417476,1723071048558,-500.0,0.00028814,7]
[334417477,1723071048569,-500.0,0.00028814,7]
[334417478,1723071048578,-500.0,0.00028814,7]
[334417479,1723071048587,-500.0,0.00028814,7]
[334417480,1723071048597,-500.0,0.00028814,7]
[334417481,1723071048605,-500.0,0.00028814,7]
[334417482,1723071048615,-500.0,0.00028814,7]
[334417483,1723071048625,-500.0,0.00028814,7]
[334417484,1723071048634,-500.0,0.00028814,7]
[334417485,1723071048644,-500.0,0.00028814,7]
[334417486,1723071048653,-500.0,0.00028814,7]
[334417487,1723071048663,-500.0,0.00028814,7]
[334417488,1723071048673,-500.0,0.00028814,7]
[334417489,1723071048682,-500.0,0.00028814,7]
[334417490,1723071048692,-403.93756262,0.00028814,7]
[334417491,1723071048701,-200.0,0.00028814,7]
[334417492,1723071048711,-500.0,0.00028814,7]
[334417493,1723071048721,-500.0,0.00028814,7]
[334417494,1723071048730,-500.0,0.00028814,7]
[334417495,1723071048739,-500.0,0.00028814,7]
[334417496,1723071048749,-500.0,0.00028814,7]
[334417497,1723071048760,-500.0,0.00028814,7]
[334417498,1723071048769,-500.0,0.00028814,7]
[334417499,1723071048778,-500.0,0.00028814,7]
[334417500,1723071048788,-500.0,0.00028814,7]
[334417501,1723071048797,-1057.02,0.00028814,7]
[334417502,1723071048806,-208.53990008,0.00028814,7]
[334417503,1723071048819,-500.0,0.00028814,7]
[334417504,1723071048828,-500.0,0.00028814,7]
[334417505,1723071048837,-500.0,0.00028814,7]
[334417506,1723071048846,-612.92,0.00028814,7]
[334417507,1723071048855,-1136.54,0.00028814,7]
[334417508,1723071048864,-525.24,0.00028814,7]
[334417509,1723071048874,-500.0,0.00028814,7]
[334417510,1723071048886,-500.0,0.00028814,7]
[334417511,1723071048895,-626.8,0.00028814,7]
[334417512,1723071048904,-500.0,0.00028814,7]
[334417513,1723071048914,-500.0,0.00028814,7]
[334417514,1723071048924,-500.0,0.00028814,7]
[334417515,1723071048933,-577.44,0.00028814,7]
[334417516,1723071048943,-500.0,0.00028814,7]
[334417517,1723071048953,-799.71,0.00028814,7]
[334417518,1723071048965,-500.0,0.00028814,7]
[334417519,1723071048975,-643.64,0.00028814,7]
[334417520,1723071048985,-500.0,0.00028814,7]
[334417521,1723071048995,-1482.2,0.00028814,7]
[334417522,1723071049006,-500.0,0.00028814,7]
[334417523,1723071049015,-500.0,0.00028814,7]
[334417524,1723071049025,-500.0,0.00028814,7]
[334417525,1723071049035,-500.0,0.00028814,7]
[334417526,1723071049046,-500.0,0.00028814,7]
[334417527,1723071049055,-598.34486443,0.00028814,7]
[334417528,1723071049064,-500.0,0.00028814,7]
[334417529,1723071049074,-500.0,0.00028814,7]
[334417530,1723071049084,-501.75314947,0.00028814,7]
[334417531,1723071049093,-500.0,0.00028814,7]
[334417532,1723071049103,-500.0,0.00028814,7]
[334417533,1723071049114,-500.0,0.00028814,7]
[334417534,1723071049124,-500.0,0.00028814,7]
[334417535,1723071049133,-500.0,0.00028814,7]
[334417536,1723071049143,-500.0,0.00028814,7]
[334417537,1723071049152,-500.0,0.00028814,7]
[334417538,1723071049163,-24295.3040458,0.00028824,3]
[334417539,1723071049173,-12147.6520229,0.00028825,3]
[334417540,1723071049182,-3641.42,0.00028834,7]
[334417541,1723071049192,-2206.43,0.00028834,7]
[334417542,1723071049202,-500.0,0.00028834,7]
[334417543,1723071049211,-2266.93,0.00028834,7]
[334417544,1723071049220,-500.0,0.00028834,7]
[334417545,1723071049229,-2933.85,0.00028834,7]
[334417546,1723071049238,-2610.43,0.00028834,7]
[334417547,1723071049249,-3165.64,0.00028834,7]
[334417548,1723071049258,-500.0,0.00028834,7]
[334417549,1723071049268,-1063.1,0.00028834,7]
[334417550,1723071049279,-500.0,0.00028834,7]
[334417551,1723071049289,-500.0,0.00028834,7]
[334417552,1723071049299,-14815.65,0.00028834,7]
[334417553,1723071049309,-500.0,0.00028834,7]
[334417554,1723071049320,-1277.52,0.00028834,7]
[334417555,1723071049329,-3932.47,0.00028834,7]
[334417556,1723071049339,-500.0,0.00028834,7]
[334417557,1723071049349,-2569.26,0.00028834,7]
[334417558,1723071049358,-779.31,0.00028834,7]
[334417559,1723071049368,-2023.96,0.00028834,7]
[334417560,1723071049377,-1283.41,0.00028834,7]
[334417561,1723071049386,-818.98,0.00028834,7]
[334417562,1723071049396,-1310.56,0.00028834,7]
[334417563,1723071049405,-967.62,0.00028834,7]
[334417564,1723071049415,-5692.33,0.00028834,7]
[334417565,1723071049425,-500.0,0.00028834,7]
[334417566,1723071049435,-3135.86,0.00028834,7]
[334417567,1723071049446,-500.0,0.00028834,7]
[334417568,1723071049456,-1182.71,0.00028834,7]
[334417569,1723071049465,-500.0,0.00028834,7]
[334417570,1723071049475,-1429.98,0.00028834,7]
[334417571,1723071049484,-500.0,0.00028834,7]
[334417572,1723071049493,-500.0,0.00028835,7]
[334417573,1723071049503,-648.9,0.00028835,7]
[334417574,1723071049513,-500.0,0.00028835,7]
[334417575,1723071049522,-503.75,0.00028835,7]
[334417576,1723071049532,-500.0,0.00028835,7]
[334417577,1723071049542,-1271.52,0.00028835,7]
[334417578,1723071049551,-500.0,0.00028835,7]
[334417579,1723071049561,-500.0,0.00028835,7]
[334417580,1723071049572,-500.0,0.00028835,7]
[334417581,1723071049582,-500.0,0.00028835,7]
[334417582,1723071049592,-376.9651856,0.00028835,7]
[334417583,1723071049602,-500.0,0.00028835,7]
[334417584,1723071049611,-500.0,0.00028835,7]
[334417585,1723071049621,-500.0,0.00028835,7]
[334417586,1723071049630,-500.0,0.00028835,7]
[334417587,1723071049640,-500.0,0.00028835,7]
[334417588,1723071049649,-442.59366568,0.00028835,7]
[334417589,1723071049659,-1152.76,0.00028835,7]
[334417590,1723071049669,-1445.37,0.00028835,7]
[334417591,1723071049679,-500.57728516,0.00028835,7]
[334417592,1723071049688,-500.0,0.00028835,7]
[334417593,1723071049698,-500.0,0.00028835,7]
[334417594,1723071049708,-751.18,0.00028835,7]
[334417595,1723071049717,-771.9,0.00028835,7]
[334417596,1723071049727,-845.83,0.00028835,7]
[334417597,1723071049736,-500.0,0.00028835,7]
[334417598,1723071049746,-1579.11,0.00028835,7]
[334417599,1723071049756,-898.42,0.00028835,7]
[334417600,1723071049766,-500.0,0.00028835,7]
[334417601,1723071049776,-542.76684196,0.00028835,7]
[334417602,1723071049785,-646.74,0.00028835,7]
[334417603,1723071049795,-500.0,0.00028835,7]
[334417604,1723071049804,-524.44,0.00028835,7]
[334417605,1723071049814,-553.87,0.00028835,7]
[334417606,1723071049824,-500.0,0.00028835,7]
[334417607,1723071049833,-500.0,0.00028835,7]
[334417608,1723071049842,-1579.43,0.00028835,7]
[334417609,1723071049852,-500.72769233,0.00028835,7]
[334417610,1723071049861,-500.0,0.00028835,7]
[334417611,1723071049872,-297.04794096,0.00028835,7]
[334417612,1723071049884,-1152.83,0.00028835,7]
[334417613,1723071049894,-500.0,0.00028835,7]
[334417614,1723071049903,-667.83,0.00028835,7]
[334417615,1723071049913,-475.50688473,0.00028835,7]
[334417616,1723071049923,-500.0,0.00028835,7]
[334417617,1723071049932,-580.2,0.00028835,7]
[334417618,1723071049942,-500.0,0.00028835,7]
[334417619,1723071049951,-539.23754855,0.00028835,7]
[334417620,1723071049962,-522.25,0.00028835,7]
[334417621,1723071049972,-509.679767,0.00028835,7]
[334417622,1723071049983,-500.0,0.00028835,7]
[334417623,1723071049992,-500.0,0.00028835,7]
[334417624,1723071050002,-500.0,0.00028835,7]
[334417625,1723071050012,-1382.47,0.00028835,7]
[334417626,1723071050022,-1210.55,0.00028835,7]
[334417627,1723071050032,-500.0,0.00028835,7]
[334417628,1723071050042,-500.0,0.00028835,7]
[334417629,1723071050053,-500.0,0.00028835,7]
[334417630,1723071050063,-504.16,0.00028835,7]
[334417631,1723071050075,-500.0,0.00028835,7]
[334417632,1723071050085,-1896.27,0.00028835,7]
[334417633,1723071050094,-500.0,0.00028835,7]
[334417634,1723071050104,-791.73,0.00028835,7]
[334417635,1723071050113,-500.0,0.00028835,7]
[334417636,1723071050122,-4328.96,0.00028835,7]
[334417637,1723071050132,-500.0,0.00028835,7]
[334417638,1723071050141,-518.9,0.00028835,7]
[334417639,1723071050151,-500.0,0.00028835,7]
[334417640,1723071050160,-1241.43,0.00028835,7]
[334417641,1723071050169,-500.0,0.00028835,7]
[334417642,1723071050179,-500.0,0.00028835,7]
[334417643,1723071050188,-500.0,0.00028835,7]
[334417644,1723071050198,-500.0,0.00028835,7]
[334417645,1723071050207,-500.0,0.00028835,7]
[334417646,1723071050217,-730.17,0.00028835,7]
[334417647,1723071050227,-261.0130505,0.00028835,7]
[334417648,1723071050236,-916.96,0.00028835,7]
[334417649,1723071050246,-821.56,0.00028835,7]
[334417650,1723071050256,-500.0,0.00028835,7]
[334417651,1723071050265,-2742.48,0.00028835,7]
[334417652,1723071050275,-1281.57,0.00028835,7]
[334417653,1723071050284,-9153.07,0.00028835,7]
[334417654,1723071050294,-1195.83,0.00028835,7]
[334417655,1723071050303,-748.64,0.00028835,7]
[334417656,1723071050313,-500.0,0.00028835,7]
[334417657,1723071050324,-2129.84,0.00028835,7]
[334417658,1723071050333,-500.0,0.00028835,7]
[334417659,1723071050345,-1240.98,0.00028835,7]
[334417660,1723071050355,-500.0,0.00028835,7]
[334417661,1723071050364,-1476.0,0.00028835,7]
[334417662,1723071050374,-914.09,0.00028835,7]
[334417663,1723071050383,-500.0,0.00028835,7]
[334417664,1723071050394,-500.0,0.00028835,7]
[334417665,1723071050405,-500.0,0.00028835,7]
[334417666,1723071050415,-523.61,0.00028835,7]
[334417667,1723071050425,-2522.83,0.00028835,7]
[334417668,1723071050437,-279.04720732,0.00028835,7]
[334417669,1723071050448,-500.0,0.00028835,7]
[334417670,1723071050459,-500.0,0.00028835,7]
[334417671,1723071050469,-500.0,0.00028835,7]
[334417672,1723071050479,-500.82657347,0.00028835,7]
[334417673,1723071050489,-500.0,0.00028835,7]
[334417674,1723071050499,-501.13023387,0.00028835,7]
[334417675,1723071050509,-500.0,0.00028835,7]
[334417676,1723071050519,-500.0,0.0002889,120]
[334417677,1723071050528,-500.0,0.0002889,120]
[334417678,1723071050538,-522.31,0.0002889,120]
[334417679,1723071050547,-150.0,0.000289,2]
[334417680,1723071050557,-1000.0,0.00028903,2]
[334417681,1723071050568,-151.0,0.00028918,5]
[334417682,1723071050578,-500.0,0.00028925,7]
[334417683,1723071050588,-500.0,0.00028925,7]
[334417684,1723071050597,-500.0,0.00028925,7]
[334417685,1723071050607,-232.87711132,0.00028925,7]
[334417686,1723071050616,-500.0,0.00028925,7]
[334417687,1723071050625,-500.0,0.00028925,7]
[334417688,1723071050635,-500.0,0.00028925,7]
[334417689,1723071050645,-500.0,0.00028925,7]
[334417690,1723071050655,-500.0,0.00028925,7]
[334417691,1723071050664,-500.0,0.00028925,7]
[334417692,1723071050674,-500.0,0.00028925,7]
[334417693,1723071050684,-500.0,0.00028925,7]
[334417694,1723071050693,-500.0,0.00028925,7]
[334417695,1723071050703,-500.0,0.00028925,7]
[334417696,1723071050713,-1270.57,0.00028925,7]
[334417697,1723071050722,-500.0,0.00028925,7]
[334417698,1723071050732,-500.0,0.00028925,7]
[334417699,1723071050743,-500.0,0.00028925,7]
[334417700,1723071050753,-500.0,0.00028925,7]
[334417701,1723071050763,-501.47192917,0.00028925,7]
[334417702,1723071050775,-782.75,0.00028925,7]
[334417703,1723071050785,-500.0,0.00028925,7]
[334417704,1723071050796,-700.43,0.00028925,7]
[334417705,1723071050806,-500.0,0.00028925,7]
[334417706,1723071050820,-551.20195376,0.00028925,7]
[334417707,1723071050833,-500.0,0.00028925,7]
[334417708,1723071050842,-500.0,0.00028925,7]
[334417709,1723071050852,-528.89,0.00028925,7]
[334417710,1723071050861,-500.0,0.00028925,7]
[334417711,1723071050871,-536.00377351,0.00028925,7]